[Event "Titled Tuesday Blitz June 07 Early 2022"]
[White "Morefield, Jason"]
[Black "Gong, Patrick"]
[WhiteFideId "30920825"]
[BlackFideId "3222500"]
[WhiteElo "2171"]
[BlackElo "2103"]
[Result "1-0"]
[Round "09"]
[TimeControl "180+1"]
[Date "2022.06.07"]
[WhiteClock "0:00:48"]
[BlackClock "0:01:04"]

1. e4 {[%clk 0:03:00]}  d6 {[%clk 0:02:56]} 2. d4 {[%clk 0:02:58]}  Nf6 {[%clk 0:02:56]} 3. Nc3 {[%clk 0:02:59]}  g6 {[%clk 0:02:56]} 4. f4 {[%clk 0:02:58]}  Bg7 {[%clk 0:02:55]} 5. a3 {[%clk 0:02:58]}  O-O {[%clk 0:02:55]} 6. Nf3 {[%clk 0:02:57]}  Na6 {[%clk 0:02:52]} 7. Bd3 {[%clk 0:02:52]}  c5 {[%clk 0:02:50]} 8. d5 {[%clk 0:02:51]}  b5 {[%clk 0:02:29]} 9. Nxb5 {[%clk 0:02:30]}  c4 {[%clk 0:02:21]} 10. Bxc4 {[%clk 0:02:29]}  Nxe4 {[%clk 0:02:20]} 11. Qe2 {[%clk 0:02:12]}  Nf6 {[%clk 0:02:12]} 12. O-O {[%clk 0:02:10]}  Nc5 {[%clk 0:02:07]} 13. Nbd4 {[%clk 0:01:57]}  Bb7 {[%clk 0:02:04]} 14. b4 {[%clk 0:01:42]}  Na4 {[%clk 0:01:57]} 15. Bb3 {[%clk 0:01:37]}  Nc3 {[%clk 0:01:55]} 16. Qd3 {[%clk 0:01:34]}  Nfxd5 {[%clk 0:01:38]} 17. f5 {[%clk 0:01:29]}  a5 {[%clk 0:01:35]} 18. bxa5 {[%clk 0:01:20]}  Ba6 {[%clk 0:01:33]} 19. Bc4 {[%clk 0:01:16]}  Bxc4 {[%clk 0:01:33]} 20. Qxc4 {[%clk 0:01:17]}  Qxa5 {[%clk 0:01:31]} 21. fxg6 {[%clk 0:01:14]}  hxg6 {[%clk 0:01:30]} 22. Bd2 {[%clk 0:01:07]}  Rac8 {[%clk 0:01:29]} 23. Qd3 {[%clk 0:01:01]}  Qc5 {[%clk 0:01:17]} 24. Kh1 {[%clk 0:00:59]}  e5 {[%clk 0:01:14]} 25. Nb3 {[%clk 0:00:55]}  Qc6 {[%clk 0:01:14]} 26. Ng5 {[%clk 0:00:51]}  e4 {[%clk 0:01:04]} 27. Qh3 {[%clk 0:00:48]} 1-0


[Site "https://www.chess.com"]

[Event "Titled Tuesday Blitz June 07 Early 2022"]
[White "Papasimakopoulos, Alexandros"]
[Black "Durarbayli, Vasif"]
[WhiteFideId "4244125"]
[BlackFideId "13402935"]
[WhiteElo "2340"]
[BlackElo "2528"]
[Result "0-1"]
[Round "09"]
[TimeControl "180+1"]
[Date "2022.06.07"]
[WhiteClock "0:00:39"]
[BlackClock "0:00:01"]

1. d4 {[%clk 0:03:00]}  Nf6 {[%clk 0:02:59]} 2. c4 {[%clk 0:03:01]}  e6 {[%clk 0:03:00]} 3. Nc3 {[%clk 0:03:01]}  Bb4 {[%clk 0:03:00]} 4. Qc2 {[%clk 0:03:02]}  O-O {[%clk 0:03:00]} 5. a3 {[%clk 0:03:03]}  Bxc3+ {[%clk 0:03:00]} 6. Qxc3 {[%clk 0:03:03]}  d5 {[%clk 0:02:55]} 7. Bg5 {[%clk 0:03:03]}  dxc4 {[%clk 0:02:55]} 8. Qxc4 {[%clk 0:03:02]}  b6 {[%clk 0:02:55]} 9. Nf3 {[%clk 0:03:02]}  Ba6 {[%clk 0:02:47]} 10. Qa4 {[%clk 0:03:02]}  c5 {[%clk 0:02:38]} 11. dxc5 {[%clk 0:03:02]}  bxc5 {[%clk 0:02:39]} 12. Rc1 {[%clk 0:03:03]}  Qb6 {[%clk 0:02:35]} 13. Bxf6 {[%clk 0:03:02]}  gxf6 {[%clk 0:02:36]} 14. Rc2 {[%clk 0:03:03]}  Rc8 {[%clk 0:02:27]} 15. e3 {[%clk 0:03:03]}  Bxf1 {[%clk 0:02:27]} 16. Kxf1 {[%clk 0:03:04]}  Na6 {[%clk 0:02:00]} 17. Ke2 {[%clk 0:03:04]}  c4 {[%clk 0:01:57]} 18. Rhc1 {[%clk 0:02:59]}  Rc7 {[%clk 0:01:46]} 19. Nd2 {[%clk 0:02:52]}  Rd8 {[%clk 0:01:23]} 20. Nxc4 {[%clk 0:02:50]}  Qb7 {[%clk 0:01:23]} 21. f3 {[%clk 0:02:43]}  Nc5 {[%clk 0:01:13]} 22. Qb4 {[%clk 0:02:29]}  Qd5 {[%clk 0:01:13]} 23. Rd2 {[%clk 0:02:11]}  Nd3 {[%clk 0:01:12]} 24. Qc3 {[%clk 0:02:02]}  Nxc1+ {[%clk 0:01:07]} 25. Qxc1 {[%clk 0:02:03]}  Qxd2+ {[%clk 0:01:07]} 26. Qxd2 {[%clk 0:02:02]}  Rxd2+ {[%clk 0:01:07]} 27. Nxd2 {[%clk 0:02:03]}  Rc2 {[%clk 0:01:07]} 28. b3 {[%clk 0:02:03]}  Rc3 {[%clk 0:00:57]} 29. g4 {[%clk 0:02:01]}  Kf8 {[%clk 0:00:54]} 30. h4 {[%clk 0:01:58]}  Ke7 {[%clk 0:00:54]} 31. g5 {[%clk 0:01:54]}  fxg5 {[%clk 0:00:53]} 32. hxg5 {[%clk 0:01:55]}  Kf8 {[%clk 0:00:54]} 33. a4 {[%clk 0:01:50]}  Kg7 {[%clk 0:00:53]} 34. f4 {[%clk 0:01:50]}  Kg6 {[%clk 0:00:43]} 35. Kf3 {[%clk 0:01:49]}  Rd3 {[%clk 0:00:43]} 36. Ke2 {[%clk 0:01:48]}  Rc3 {[%clk 0:00:43]} 37. Kf3 {[%clk 0:01:49]}  Rc2 {[%clk 0:00:32]} 38. Nc4 {[%clk 0:01:42]}  f6 {[%clk 0:00:29]} 39. gxf6 {[%clk 0:01:34]}  Kxf6 {[%clk 0:00:30]} 40. Nd6 {[%clk 0:01:27]}  h5 {[%clk 0:00:23]} 41. b4 {[%clk 0:01:23]}  Ke7 {[%clk 0:00:19]} 42. Nb5 {[%clk 0:01:18]}  a6 {[%clk 0:00:16]} 43. Nd4 {[%clk 0:01:18]}  Kd6 {[%clk 0:00:13]} 44. b5 {[%clk 0:01:17]}  Ra2 {[%clk 0:00:11]} 45. bxa6 {[%clk 0:01:17]}  Rxa4 {[%clk 0:00:12]} 46. a7 {[%clk 0:01:17]}  Kd7 {[%clk 0:00:06]} 47. f5 {[%clk 0:00:58]}  e5 {[%clk 0:00:04]} 48. Nb5 {[%clk 0:00:56]}  h4 {[%clk 0:00:02]} 49. e4 {[%clk 0:00:49]}  h3 {[%clk 0:00:01]} 50. Nc3 {[%clk 0:00:45]}  Kc6 {[%clk 0:00:02]} 51. Nd5 {[%clk 0:00:42]}  Rxa7 {[%clk 0:00:01]} 52. Ne7+ {[%clk 0:00:39]}  Rxe7 {[%clk 0:00:01]} 0-1


[Site "https://www.chess.com"]

[Event "Titled Tuesday Blitz June 07 Early 2022"]
[White "Riehle, Marco"]
[Black "Alinasab, Mobina"]
[WhiteFideId "12904392"]
[BlackFideId "12528897"]
[WhiteElo "2462"]
[BlackElo "2031"]
[Result "1-0"]
[Round "09"]
[TimeControl "180+1"]
[Date "2022.06.07"]
[WhiteClock "0:00:52"]
[BlackClock "0:00:01"]

1. e4 {[%clk 0:02:55]}  c5 {[%clk 0:02:59]} 2. a3 {[%clk 0:02:52]}  d5 {[%clk 0:02:56]} 3. exd5 {[%clk 0:02:51]}  Qxd5 {[%clk 0:02:56]} 4. Nc3 {[%clk 0:02:46]}  Qd8 {[%clk 0:02:56]} 5. Nf3 {[%clk 0:02:41]}  Nc6 {[%clk 0:02:56]} 6. Bb5 {[%clk 0:02:33]}  Bd7 {[%clk 0:02:56]} 7. O-O {[%clk 0:02:27]}  e6 {[%clk 0:02:46]} 8. Re1 {[%clk 0:02:24]}  Nf6 {[%clk 0:02:46]} 9. Bxc6 {[%clk 0:02:16]}  Bxc6 {[%clk 0:02:44]} 10. Ne5 {[%clk 0:02:17]}  Qc7 {[%clk 0:02:39]} 11. Nxc6 {[%clk 0:02:10]}  Qxc6 {[%clk 0:02:40]} 12. d3 {[%clk 0:02:05]}  Be7 {[%clk 0:02:35]} 13. Bf4 {[%clk 0:02:03]}  O-O {[%clk 0:02:33]} 14. Be5 {[%clk 0:02:02]}  Nd7 {[%clk 0:02:26]} 15. Bg3 {[%clk 0:01:57]}  Bf6 {[%clk 0:02:25]} 16. h3 {[%clk 0:01:55]}  Bxc3 {[%clk 0:02:11]} 17. bxc3 {[%clk 0:01:54]}  Rfd8 {[%clk 0:02:12]} 18. c4 {[%clk 0:01:51]}  a6 {[%clk 0:01:57]} 19. a4 {[%clk 0:01:47]}  b5 {[%clk 0:01:48]} 20. axb5 {[%clk 0:01:44]}  axb5 {[%clk 0:01:49]} 21. Rxa8 {[%clk 0:01:43]}  Rxa8 {[%clk 0:01:45]} 22. cxb5 {[%clk 0:01:43]}  Qxb5 {[%clk 0:01:46]} 23. Qf3 {[%clk 0:01:43]}  Rc8 {[%clk 0:01:33]} 24. Ra1 {[%clk 0:01:39]}  Qc6 {[%clk 0:00:34]} 25. Qe3 {[%clk 0:01:27]}  h6 {[%clk 0:00:25]} 26. Ra7 {[%clk 0:01:25]}  Nf6 {[%clk 0:00:23]} 27. Be5 {[%clk 0:01:24]}  Nd7 {[%clk 0:00:12]} 28. Bc3 {[%clk 0:01:22]}  Ra8 {[%clk 0:00:10]} 29. Qg3 {[%clk 0:01:19]}  e5 {[%clk 0:00:08]} 30. Bxe5 {[%clk 0:01:17]}  Nxe5 {[%clk 0:00:06]} 31. Rxa8+ {[%clk 0:01:17]}  Qxa8 {[%clk 0:00:07]} 32. Qxe5 {[%clk 0:01:18]}  Qc6 {[%clk 0:00:08]} 33. g4 {[%clk 0:01:17]}  c4 {[%clk 0:00:05]} 34. d4 {[%clk 0:01:15]}  Qf3 {[%clk 0:00:04]} 35. d5 {[%clk 0:01:01]}  Qd1+ {[%clk 0:00:03]} 36. Kg2 {[%clk 0:01:00]}  c3 {[%clk 0:00:03]} 37. Qxc3 {[%clk 0:00:54]}  Qxd5+ {[%clk 0:00:03]} 38. Qf3 {[%clk 0:00:55]}  Qc4 {[%clk 0:00:03]} 39. Qd3 {[%clk 0:00:53]}  Qc6+ {[%clk 0:00:02]} 40. f3 {[%clk 0:00:54]}  Qc7 {[%clk 0:00:02]} 41. c4 {[%clk 0:00:54]}  Qc5 {[%clk 0:00:02]} 42. h4 {[%clk 0:00:54]}  Kh8 {[%clk 0:00:01]} 43. h5 {[%clk 0:00:53]}  Qc7 {[%clk 0:00:01]} 44. Qd5 {[%clk 0:00:53]}  Qe7 {[%clk 0:00:01]} 45. Qe4 {[%clk 0:00:52]} 1-0


[Site "https://www.chess.com"]

[Event "Titled Tuesday Blitz June 07 Early 2022"]
[White "Terry, Renato"]
[Black "Sarana, Alexey"]
[WhiteFideId "3803457"]
[BlackFideId "24133795"]
[WhiteElo "2577"]
[BlackElo "2666"]
[Result "0-1"]
[Round "09"]
[TimeControl "180+1"]
[Date "2022.06.07"]
[WhiteClock "0:00:01"]
[BlackClock "0:01:04"]

1. d4 {[%clk 0:03:00]}  Nf6 {[%clk 0:03:00]} 2. Bg5 {[%clk 0:03:01]}  d5 {[%clk 0:02:58]} 3. Bxf6 {[%clk 0:03:01]}  exf6 {[%clk 0:02:59]} 4. e3 {[%clk 0:03:01]}  c5 {[%clk 0:02:59]} 5. dxc5 {[%clk 0:03:01]}  Bxc5 {[%clk 0:02:59]} 6. Nf3 {[%clk 0:03:00]}  Qb6 {[%clk 0:02:59]} 7. Qc1 {[%clk 0:02:53]}  O-O {[%clk 0:02:57]} 8. c3 {[%clk 0:02:52]}  Nc6 {[%clk 0:02:57]} 9. Be2 {[%clk 0:02:51]}  Ne5 {[%clk 0:02:57]} 10. Nd4 {[%clk 0:02:39]}  Bg4 {[%clk 0:02:50]} 11. Qd2 {[%clk 0:01:37]}  Bxe2 {[%clk 0:02:20]} 12. Qxe2 {[%clk 0:01:37]}  Nc4 {[%clk 0:02:21]} 13. b3 {[%clk 0:01:33]}  Bxd4 {[%clk 0:02:17]} 14. cxd4 {[%clk 0:01:34]}  Qa5+ {[%clk 0:02:07]} 15. Nd2 {[%clk 0:01:18]}  Qc3 {[%clk 0:02:05]} 16. Rb1 {[%clk 0:00:26]}  Na3 {[%clk 0:02:05]} 17. Rd1 {[%clk 0:00:26]}  Nc2+ {[%clk 0:02:04]} 18. Kf1 {[%clk 0:00:27]}  Rfe8 {[%clk 0:02:01]} 19. Nf3 {[%clk 0:00:24]}  Rac8 {[%clk 0:02:00]} 20. Qb5 {[%clk 0:00:08]}  Qb2 {[%clk 0:01:40]} 21. h4 {[%clk 0:00:05]}  Rxe3 {[%clk 0:01:27]} 22. Qxb7 {[%clk 0:00:05]}  Rce8 {[%clk 0:01:26]} 23. Kg1 {[%clk 0:00:05]}  Re2 {[%clk 0:01:13]} 24. Qxa7 {[%clk 0:00:06]}  Ne3 {[%clk 0:01:06]} 25. Re1 {[%clk 0:00:02]}  Ng4 {[%clk 0:01:05]} 26. Rf1 {[%clk 0:00:01]}  Rxf2 {[%clk 0:01:04]} 0-1


[Site "https://www.chess.com"]

[Event "Titled Tuesday Blitz June 07 Early 2022"]
[White "Urazayev, Arystanbek"]
[Black "Alvarado Diaz, Alejandro"]
[WhiteFideId "13709810"]
[BlackFideId "2276119"]
[WhiteElo "2422"]
[BlackElo "2438"]
[Result "1-0"]
[Round "09"]
[TimeControl "180+1"]
[Date "2022.06.07"]
[WhiteClock "0:00:11"]
[BlackClock "0:00:02"]

1. e4 {[%clk 0:03:00]}  e6 {[%clk 0:02:59]} 2. d4 {[%clk 0:03:00]}  d5 {[%clk 0:02:59]} 3. e5 {[%clk 0:03:01]}  c5 {[%clk 0:02:59]} 4. c3 {[%clk 0:03:01]}  Nc6 {[%clk 0:02:58]} 5. Nf3 {[%clk 0:03:02]}  Bd7 {[%clk 0:02:58]} 6. Be2 {[%clk 0:03:01]}  cxd4 {[%clk 0:02:43]} 7. cxd4 {[%clk 0:03:01]}  Nge7 {[%clk 0:02:43]} 8. Nc3 {[%clk 0:02:59]}  Nf5 {[%clk 0:02:43]} 9. O-O {[%clk 0:02:59]}  a6 {[%clk 0:02:42]} 10. b3 {[%clk 0:02:50]}  Be7 {[%clk 0:02:38]} 11. Bb2 {[%clk 0:02:50]}  O-O {[%clk 0:02:37]} 12. Rc1 {[%clk 0:02:50]}  Rc8 {[%clk 0:02:20]} 13. Na4 {[%clk 0:02:49]}  Na7 {[%clk 0:02:09]} 14. Rxc8 {[%clk 0:02:45]}  Nxc8 {[%clk 0:02:06]} 15. Nc5 {[%clk 0:02:46]}  Bc6 {[%clk 0:02:06]} 16. b4 {[%clk 0:02:45]}  Nb6 {[%clk 0:02:05]} 17. Nd2 {[%clk 0:02:33]}  Bxc5 {[%clk 0:01:50]} 18. bxc5 {[%clk 0:02:14]}  Nd7 {[%clk 0:01:43]} 19. Bd3 {[%clk 0:02:05]}  Qg5 {[%clk 0:01:41]} 20. f4 {[%clk 0:02:03]}  Qg6 {[%clk 0:01:32]} 21. Qe2 {[%clk 0:01:54]}  f6 {[%clk 0:01:05]} 22. Nf3 {[%clk 0:01:49]}  fxe5 {[%clk 0:01:05]} 23. Nh4 {[%clk 0:01:35]}  Nxd4 {[%clk 0:00:34]} 24. Bxd4 {[%clk 0:01:28]}  Qh6 {[%clk 0:00:33]} 25. Nf5 {[%clk 0:01:17]}  exf5 {[%clk 0:00:30]} 26. fxe5 {[%clk 0:01:18]}  Qh4 {[%clk 0:00:17]} 27. Qb2 {[%clk 0:01:10]}  f4 {[%clk 0:00:12]} 28. Be2 {[%clk 0:00:38]}  Re8 {[%clk 0:00:10]} 29. Bf3 {[%clk 0:00:38]}  Qg5 {[%clk 0:00:09]} 30. Re1 {[%clk 0:00:38]}  Qf5 {[%clk 0:00:08]} 31. Qe2 {[%clk 0:00:31]}  Nf8 {[%clk 0:00:08]} 32. Bg4 {[%clk 0:00:30]}  Qg5 {[%clk 0:00:08]} 33. e6 {[%clk 0:00:23]}  h5 {[%clk 0:00:06]} 34. Bh3 {[%clk 0:00:23]}  Ng6 {[%clk 0:00:06]} 35. Qb2 {[%clk 0:00:17]}  Nh4 {[%clk 0:00:06]} 36. Kh1 {[%clk 0:00:18]}  f3 {[%clk 0:00:05]} 37. gxf3 {[%clk 0:00:16]}  Nxf3 {[%clk 0:00:05]} 38. Rf1 {[%clk 0:00:15]}  Nxd4 {[%clk 0:00:02]} 39. Qxd4 {[%clk 0:00:16]}  Qg6 {[%clk 0:00:01]} 40. Rg1 {[%clk 0:00:13]}  Qh6 {[%clk 0:00:01]} 41. Bf5 {[%clk 0:00:12]}  Re7 {[%clk 0:00:02]} 42. h4 {[%clk 0:00:11]} 1-0


[Site "https://www.chess.com"]

[Event "Titled Tuesday Blitz June 07 Early 2022"]
[White "Vasquez Schroeder, Rodrigo"]
[Black "Bortnyk, Mykola"]
[WhiteFideId "3400042"]
[BlackFideId "14120836"]
[WhiteElo "2567"]
[BlackElo "2582"]
[Result "0-1"]
[Round "09"]
[TimeControl "180+1"]
[Date "2022.06.07"]
[WhiteClock "0:01:07"]
[BlackClock "0:01:13"]

1. e4 {[%clk 0:03:00]}  Nf6 {[%clk 0:02:55]} 2. d3 {[%clk 0:03:00]}  e5 {[%clk 0:02:54]} 3. Nf3 {[%clk 0:03:00]}  Nc6 {[%clk 0:02:55]} 4. c3 {[%clk 0:02:58]}  d5 {[%clk 0:02:55]} 5. Nbd2 {[%clk 0:02:58]}  a5 {[%clk 0:02:55]} 6. Be2 {[%clk 0:02:57]}  Bc5 {[%clk 0:02:55]} 7. O-O {[%clk 0:02:58]}  O-O {[%clk 0:02:55]} 8. b3 {[%clk 0:02:58]}  Re8 {[%clk 0:02:54]} 9. a3 {[%clk 0:02:58]}  b5 {[%clk 0:02:52]} 10. Bb2 {[%clk 0:02:57]}  Bb6 {[%clk 0:02:46]} 11. b4 {[%clk 0:02:56]}  axb4 {[%clk 0:02:44]} 12. axb4 {[%clk 0:02:51]}  Bb7 {[%clk 0:02:41]} 13. Qb3 {[%clk 0:02:48]}  Rxa1 {[%clk 0:02:32]} 14. Bxa1 {[%clk 0:02:42]}  Nb8 {[%clk 0:02:21]} 15. Qb1 {[%clk 0:02:23]}  Nbd7 {[%clk 0:02:13]} 16. exd5 {[%clk 0:02:08]}  Nxd5 {[%clk 0:02:11]} 17. g3 {[%clk 0:02:07]}  N5f6 {[%clk 0:02:01]} 18. Ne4 {[%clk 0:01:57]}  Qa8 {[%clk 0:01:54]} 19. Nfd2 {[%clk 0:01:52]}  Nxe4 {[%clk 0:01:45]} 20. dxe4 {[%clk 0:01:47]}  Nf6 {[%clk 0:01:45]} 21. Bd3 {[%clk 0:01:19]}  Rd8 {[%clk 0:01:44]} 22. Qc2 {[%clk 0:01:12]}  h5 {[%clk 0:01:39]} 23. Kg2 {[%clk 0:01:09]}  Qc8 {[%clk 0:01:15]} 24. f3 {[%clk 0:01:07]}  Qd7 {[%clk 0:01:13]} 0-1


[Site "https://www.chess.com"]

[Event "Titled Tuesday Blitz June 07 Early 2022"]
[White "Xu, Yi"]
[Black "Korchmar, Vasiliy"]
[WhiteFideId "8605564"]
[BlackFideId "24131750"]
[WhiteElo "2471"]
[BlackElo "2370"]
[Result "1-0"]
[Round "09"]
[TimeControl "180+1"]
[Date "2022.06.07"]
[WhiteClock "0:00:44"]
[BlackClock "0:00:10"]

1. e4 {[%clk 0:02:58]}  c5 {[%clk 0:03:00]} 2. Nf3 {[%clk 0:02:58]}  d6 {[%clk 0:03:00]} 3. d4 {[%clk 0:02:57]}  cxd4 {[%clk 0:03:01]} 4. Nxd4 {[%clk 0:02:58]}  Nf6 {[%clk 0:03:01]} 5. Nc3 {[%clk 0:02:58]}  Nc6 {[%clk 0:03:02]} 6. Bg5 {[%clk 0:02:58]}  Bd7 {[%clk 0:03:00]} 7. Qd2 {[%clk 0:02:58]}  a6 {[%clk 0:02:57]} 8. f4 {[%clk 0:02:51]}  e6 {[%clk 0:02:49]} 9. O-O-O {[%clk 0:02:51]}  h6 {[%clk 0:02:46]} 10. Bh4 {[%clk 0:02:50]}  b5 {[%clk 0:02:40]} 11. Bxf6 {[%clk 0:02:11]}  gxf6 {[%clk 0:02:41]} 12. Nxc6 {[%clk 0:02:08]}  Bxc6 {[%clk 0:02:40]} 13. f5 {[%clk 0:02:09]}  Qb6 {[%clk 0:02:37]} 14. Kb1 {[%clk 0:02:00]}  O-O-O {[%clk 0:02:36]} 15. Bd3 {[%clk 0:02:00]}  h5 {[%clk 0:02:33]} 16. Ne2 {[%clk 0:01:50]}  Bh6 {[%clk 0:02:22]} 17. Qe1 {[%clk 0:01:51]}  e5 {[%clk 0:02:09]} 18. Nc3 {[%clk 0:01:41]}  Be3 {[%clk 0:02:03]} 19. a3 {[%clk 0:01:39]}  h4 {[%clk 0:01:55]} 20. Rf1 {[%clk 0:01:35]}  h3 {[%clk 0:01:49]} 21. g3 {[%clk 0:01:31]}  Kb8 {[%clk 0:01:49]} 22. Rf3 {[%clk 0:01:31]}  Bd4 {[%clk 0:01:35]} 23. Ne2 {[%clk 0:01:27]}  Bc5 {[%clk 0:01:28]} 24. Nc3 {[%clk 0:01:18]}  Bd4 {[%clk 0:01:17]} 25. Na2 {[%clk 0:01:14]}  d5 {[%clk 0:00:49]} 26. Nb4 {[%clk 0:01:13]}  dxe4 {[%clk 0:00:40]} 27. Bxe4 {[%clk 0:01:06]}  Bb7 {[%clk 0:00:28]} 28. Rfd3 {[%clk 0:00:59]}  a5 {[%clk 0:00:23]} 29. Na2 {[%clk 0:00:59]}  Bxe4 {[%clk 0:00:10]} 30. Qxe4 {[%clk 0:00:59]}  Bg1 {[%clk 0:00:10]} 31. Qe2 {[%clk 0:00:46]}  Qf2 {[%clk 0:00:10]} 32. Rxd8+ {[%clk 0:00:44]}  Rxd8 {[%clk 0:00:09]} 33. Rxd8+ {[%clk 0:00:44]}  Kc7 {[%clk 0:00:10]} 34. Qxf2 {[%clk 0:00:44]} 1-0


[Site "https://www.chess.com"]

[Event "Titled Tuesday Blitz June 07 Early 2022"]
[White "Yuan, Qingyu"]
[Black "Jia, Haoxiang"]
[WhiteFideId "8609772"]
[BlackFideId "8602999"]
[WhiteElo "2359"]
[BlackElo "2614"]
[Result "1-0"]
[Round "09"]
[TimeControl "180+1"]
[Date "2022.06.07"]
[WhiteClock "0:00:03"]
[BlackClock "0:00:02"]

1. e4 {[%clk 0:03:00]}  c5 {[%clk 0:02:55]} 2. Nf3 {[%clk 0:03:00]}  e6 {[%clk 0:02:54]} 3. b3 {[%clk 0:02:55]}  b6 {[%clk 0:02:53]} 4. d4 {[%clk 0:02:55]}  cxd4 {[%clk 0:02:53]} 5. Nxd4 {[%clk 0:02:56]}  a6 {[%clk 0:02:52]} 6. Bb2 {[%clk 0:02:53]}  Bb7 {[%clk 0:02:52]} 7. Nd2 {[%clk 0:02:53]}  d6 {[%clk 0:02:51]} 8. Bd3 {[%clk 0:02:53]}  Nf6 {[%clk 0:02:51]} 9. Qe2 {[%clk 0:02:53]}  Nbd7 {[%clk 0:02:49]} 10. O-O-O {[%clk 0:02:53]}  Be7 {[%clk 0:02:43]} 11. g4 {[%clk 0:02:53]}  Nc5 {[%clk 0:02:42]} 12. g5 {[%clk 0:02:43]}  Nfd7 {[%clk 0:02:35]} 13. f4 {[%clk 0:02:32]}  Nxd3+ {[%clk 0:01:54]} 14. cxd3 {[%clk 0:02:27]}  a5 {[%clk 0:01:37]} 15. Kb1 {[%clk 0:01:55]}  a4 {[%clk 0:01:35]} 16. Nxe6 {[%clk 0:01:32]}  fxe6 {[%clk 0:00:59]} 17. Bxg7 {[%clk 0:01:31]}  Kf7 {[%clk 0:00:57]} 18. Bb2 {[%clk 0:01:25]}  axb3 {[%clk 0:00:45]} 19. axb3 {[%clk 0:01:09]}  Ba6 {[%clk 0:00:27]} 20. Rhg1 {[%clk 0:01:00]}  h5 {[%clk 0:00:18]} 21. g6+ {[%clk 0:00:54]}  Kg8 {[%clk 0:00:18]} 22. Bxh8 {[%clk 0:00:50]}  Bf6 {[%clk 0:00:18]} 23. Bxf6 {[%clk 0:00:38]}  Qxf6 {[%clk 0:00:18]} 24. Nc4 {[%clk 0:00:37]}  Bxc4 {[%clk 0:00:18]} 25. e5 {[%clk 0:00:33]}  dxe5 {[%clk 0:00:14]} 26. dxc4 {[%clk 0:00:31]}  exf4 {[%clk 0:00:13]} 27. Qb2 {[%clk 0:00:25]}  Qf5+ {[%clk 0:00:14]} 28. Kc1 {[%clk 0:00:19]}  Ne5 {[%clk 0:00:13]} 29. Qc3 {[%clk 0:00:12]}  f3 {[%clk 0:00:13]} 30. g7 {[%clk 0:00:08]}  f2 {[%clk 0:00:13]} 31. Rgf1 {[%clk 0:00:08]}  Qf4+ {[%clk 0:00:14]} 32. Kb2 {[%clk 0:00:04]}  Qf5 {[%clk 0:00:09]} 33. Rd2 {[%clk 0:00:04]}  Ng4 {[%clk 0:00:07]} 34. h3 {[%clk 0:00:04]}  Ne5 {[%clk 0:00:03]} 35. Rfxf2 {[%clk 0:00:04]}  Qe4 {[%clk 0:00:03]} 36. Rfe2 {[%clk 0:00:04]}  Nd3+ {[%clk 0:00:02]} 37. Qxd3 {[%clk 0:00:04]}  Qc6 {[%clk 0:00:02]} 38. Rg2 {[%clk 0:00:03]}  Qc5 {[%clk 0:00:02]} 39. Qd8+ {[%clk 0:00:03]} 1-0


[Site "https://www.chess.com"]

[Event "Titled Tuesday Blitz June 07 Early 2022"]
[White "Zhigalko, Sergei"]
[Black "Thavandiran, Shiyam"]
[WhiteFideId "13502956"]
[BlackFideId "2605058"]
[WhiteElo "2662"]
[BlackElo "2357"]
[Result "1-0"]
[Round "09"]
[TimeControl "180+1"]
[Date "2022.06.07"]
[WhiteClock "0:00:02"]
[BlackClock "0:00:01"]

1. e4 {[%clk 0:03:00]}  e6 {[%clk 0:02:59]} 2. d4 {[%clk 0:03:01]}  d5 {[%clk 0:03:00]} 3. e5 {[%clk 0:03:01]}  c5 {[%clk 0:03:00]} 4. c3 {[%clk 0:03:02]}  Nc6 {[%clk 0:03:00]} 5. Nf3 {[%clk 0:03:02]}  Bd7 {[%clk 0:03:01]} 6. Be2 {[%clk 0:03:02]}  Nge7 {[%clk 0:03:00]} 7. Na3 {[%clk 0:03:02]}  cxd4 {[%clk 0:02:39]} 8. cxd4 {[%clk 0:03:03]}  f6 {[%clk 0:02:39]} 9. exf6 {[%clk 0:02:36]}  gxf6 {[%clk 0:02:40]} 10. Nh4 {[%clk 0:02:36]}  Ng6 {[%clk 0:02:25]} 11. Bh5 {[%clk 0:02:32]}  Rg8 {[%clk 0:02:21]} 12. O-O {[%clk 0:02:28]}  Qb6 {[%clk 0:02:14]} 13. Nc2 {[%clk 0:02:12]}  O-O-O {[%clk 0:02:13]} 14. Nxg6 {[%clk 0:02:06]}  hxg6 {[%clk 0:02:14]} 15. Bf3 {[%clk 0:02:02]}  f5 {[%clk 0:02:02]} 16. b4 {[%clk 0:01:57]}  Bg7 {[%clk 0:02:01]} 17. Be3 {[%clk 0:01:53]}  Rdf8 {[%clk 0:01:57]} 18. Qd2 {[%clk 0:01:44]}  g5 {[%clk 0:01:53]} 19. b5 {[%clk 0:01:44]}  Na5 {[%clk 0:01:45]} 20. Bxg5 {[%clk 0:01:40]}  Nc4 {[%clk 0:01:42]} 21. Qf4 {[%clk 0:01:37]}  e5 {[%clk 0:01:30]} 22. dxe5 {[%clk 0:00:59]}  Bxe5 {[%clk 0:01:30]} 23. Qc1 {[%clk 0:00:47]}  Bxa1 {[%clk 0:01:15]} 24. Nxa1 {[%clk 0:00:44]}  Qxb5 {[%clk 0:01:12]} 25. Nb3 {[%clk 0:00:37]}  Bc6 {[%clk 0:01:07]} 26. Bf4 {[%clk 0:00:23]}  Qb6 {[%clk 0:01:00]} 27. Qc3 {[%clk 0:00:20]}  Re8 {[%clk 0:00:58]} 28. Rc1 {[%clk 0:00:18]}  Qd8 {[%clk 0:00:38]} 29. g3 {[%clk 0:00:15]}  Qe7 {[%clk 0:00:18]} 30. Nd4 {[%clk 0:00:09]}  Qf6 {[%clk 0:00:11]} 31. Qd3 {[%clk 0:00:09]}  Ne5 {[%clk 0:00:06]} 32. Qa3 {[%clk 0:00:05]}  Kb8 {[%clk 0:00:03]} 33. Bg2 {[%clk 0:00:02]}  Ka8 {[%clk 0:00:03]} 34. Be3 {[%clk 0:00:02]}  Nc4 {[%clk 0:00:02]} 35. Rxc4 {[%clk 0:00:02]}  dxc4 {[%clk 0:00:03]} 36. Nxc6 {[%clk 0:00:02]}  Qa1+ {[%clk 0:00:01]} 37. Bf1 {[%clk 0:00:02]} 1-0


[Site "https://www.chess.com"]